[Event "The Kvibergspelen 2024"]
[Site "Kviberg Park Hotel & Conference, Krutvagen 2, Gothenburg, Sweden"]
[Date "2024.09.06"]
[Round "1.16"]
[White "Madevan Vaishnavi, Yaashvan"]
[Black "Andersson, Robert"]
[Result "0-1"]
[TimeControl "15 minutes + 5 seconds per move from move one (Round 1 - 4) / 90 minutes + 30 seconds per move from move one (Round 5 - 8)"]
[WhiteFideId "1772180"]
[BlackFideId "1703226"]
[WhiteElo "1831"]
[BlackElo "2098"]

1. e4 {[%clk 00:15:08]} {[%emt 00:00:02]} c5 {[%clk 00:14:58]} {[%emt
00:00:12]} 2. c3 {[%clk 00:15:11]} {[%emt 00:00:02]} a6 {[%clk 00:14:52]}
{[%emt 00:00:10]} 3. d4 {[%clk 00:14:43]} {[%emt 00:00:34]} cxd4 {[%clk
00:14:54]} {[%emt 00:00:02]} 4. cxd4 {[%clk 00:14:46]} {[%emt 00:00:02]} d5
{[%clk 00:14:55]} {[%emt 00:00:03]} 5. e5 {[%clk 00:14:09]} {[%emt 00:00:43]}
Nc6 {[%clk 00:14:58]} {[%emt 00:00:02]} 6. Nf3 {[%clk 00:14:01]} {[%emt
00:00:13]} Bg4 {[%clk 00:14:51]} {[%emt 00:00:12]} 7. Be3 {[%clk 00:13:28]}
{[%emt 00:00:38]} e6 {[%clk 00:14:53]} {[%emt 00:00:02]} 8. Nbd2 {[%clk
00:12:16]} {[%emt 00:01:18]} Be7 {[%clk 00:14:52]} {[%emt 00:00:06]} 9. h3
{[%clk 00:11:44]} {[%emt 00:00:37]} Bxf3 {[%clk 00:14:49]} {[%emt 00:00:07]} 10.
Nxf3 {[%clk 00:10:32]} {[%emt 00:01:18]} h5 {[%clk 00:14:51]} {[%emt 00:00:02]}
11. h4 {[%clk 00:09:50]} {[%emt 00:00:47]} Nh6 {[%clk 00:14:45]} {[%emt
00:00:10]} 12. Bxh6 {[%clk 00:08:39]} {[%emt 00:01:17]} Rxh6 {[%clk 00:14:41]}
{[%emt 00:00:09]} 13. a3 {[%clk 00:08:42]} {[%emt 00:00:03]} g6 {[%clk
00:13:32]} {[%emt 00:01:12]} 14. Qd2 {[%clk 00:07:36]} {[%emt 00:01:13]} Rh8
{[%clk 00:13:34]} {[%emt 00:00:03]} 15. Be2 {[%clk 00:07:04]} {[%emt 00:00:37]}
Qa5 {[%clk 00:13:22]} {[%emt 00:00:16]} 16. Qxa5 {[%clk 00:06:33]} {[%emt
00:00:37]} Nxa5 {[%clk 00:13:24]} {[%emt 00:00:02]} 17. Rc1 {[%clk 00:06:19]}
{[%emt 00:00:20]} Kd7 {[%clk 00:13:22]} {[%emt 00:00:06]} 18. Rc3 {[%clk
00:05:42]} {[%emt 00:00:43]} Rhc8 {[%clk 00:13:07]} {[%emt 00:00:19]} 19. Kd2
{[%clk 00:05:03]} {[%emt 00:00:45]} Rxc3 {[%clk 00:13:08]} {[%emt 00:00:03]} 20.
bxc3 {[%clk 00:05:01]} {[%emt 00:00:07]} Bxa3 {[%clk 00:12:50]} {[%emt
00:00:24]} 21. Ng5 {[%clk 00:04:44]} {[%emt 00:00:21]} Ke8 {[%clk 00:11:34]}
{[%emt 00:01:22]} 22. g4 {[%clk 00:04:01]} {[%emt 00:00:48]} hxg4 {[%clk
00:11:30]} {[%emt 00:00:09]} 23. h5 {[%clk 00:03:17]} {[%emt 00:00:49]} Be7
{[%clk 00:11:33]} {[%emt 00:00:03]} 24. f4 {[%clk 00:03:02]} {[%emt 00:00:19]}
gxf3 {[%clk 00:11:17]} {[%emt 00:00:21]} 25. Nxf3 {[%clk 00:03:02]} {[%emt
00:00:05]} gxh5 {[%clk 00:11:10]} {[%emt 00:00:12]} 26. Rxh5 {[%clk 00:03:05]}
{[%emt 00:00:02]} Rc8 {[%clk 00:09:00]} {[%emt 00:02:15]} 27. Rh8+ {[%clk
00:01:51]} {[%emt 00:01:20]} Kd7 {[%clk 00:09:02]} {[%emt 00:00:03]} 28. Rh7
{[%clk 00:01:54]} {[%emt 00:00:02]} Rf8 {[%clk 00:08:55]} {[%emt 00:00:12]} 29.
Bd3 {[%clk 00:00:58]} {[%emt 00:01:00]} Ke8 {[%clk 00:08:49]} {[%emt 00:00:11]}
30. Ke3 {[%clk 00:00:26]} {[%emt 00:00:37]} Rg8 {[%clk 00:08:18]} {[%emt
00:00:35]} 31. Be2 {[%clk 00:00:11]} {[%emt 00:00:21]} b5 {[%clk 00:07:12]}
{[%emt 00:01:12]} 32. Nh2 {[%clk 00:00:10]} {[%emt 00:00:06]} Nc6 {[%clk
00:06:28]} {[%emt 00:00:48]} 33. Ng4 {[%clk 00:00:12]} {[%emt 00:00:03]} Nb8
{[%clk 00:06:05]} {[%emt 00:00:28]} 34. Nh6 {[%clk 00:00:08]} {[%emt 00:00:09]}
Bg5+ {[%clk 00:06:02]} {[%emt 00:00:09]} 35. Kd3 {[%clk 00:00:09]} {[%emt
00:00:02]} Bxh6 {[%clk 00:05:59]} {[%emt 00:00:09]} 36. Rxh6 {[%clk 00:00:13]}
{[%emt 00:00:01]} Nd7 {[%clk 00:05:05]} {[%emt 00:01:00]} 37. Bh5 {[%clk
00:00:13]} {[%emt 00:00:04]} Ke7 {[%clk 00:03:41]} {[%emt 00:01:29]} 38. Rh7
{[%clk 00:00:14]} {[%emt 00:00:05]} Rf8 {[%clk 00:03:41]} {[%emt 00:00:04]} 39.
Kc2 {[%clk 00:00:15]} {[%emt 00:00:05]} Nb6 {[%clk 00:03:20]} {[%emt 00:00:26]}
40. Kb3 {[%clk 00:00:17]} {[%emt 00:00:02]} a5 {[%clk 00:03:17]} {[%emt
00:00:08]} 41. Be2 {[%clk 00:00:16]} {[%emt 00:00:06]} Nc4 {[%clk 00:03:17]}
{[%emt 00:00:06]} 42. Bd3 {[%emt 00:00:15]} 0-1

[Event "The Kvibergspelen 2024"]
[Site "Kviberg Park Hotel & Conference, Krutvagen 2, Gothenburg, Sweden"]
[Date "2024.09.06"]
[Round "1.17"]
[White "Sjoholm, Emil"]
[Black "Roosvald, Filip"]
[Result "1-0"]
[TimeControl "15 minutes + 5 seconds per move from move one (Round 1 - 4) / 90 minutes + 30 seconds per move from move one (Round 5 - 8)"]
[WhiteFideId "1720449"]
[BlackFideId "1767976"]
[WhiteElo "2092"]
[BlackElo "1824"]

1. e4 {[%clk 00:15:07]} {[%emt 00:00:02]} c6 {[%clk 00:15:09]} {[%emt
00:00:02]} 2. d4 {[%clk 00:15:09]} {[%emt 00:00:03]} d5 {[%clk 00:15:13]}
{[%emt 00:00:01]} 3. Nc3 {[%clk 00:15:12]} dxe4 {[%clk 00:15:16]} {[%emt
00:00:03]} 4. Nxe4 {[%clk 00:15:14]} {[%emt 00:00:02]} Nf6 {[%clk 00:15:20]}
{[%emt 00:00:02]} 5. Nxf6+ {[%clk 00:15:14]} {[%emt 00:00:06]} exf6 {[%clk
00:15:23]} {[%emt 00:00:01]} 6. c3 {[%clk 00:15:16]} {[%emt 00:00:03]} Bd6
{[%clk 00:15:27]} {[%emt 00:00:02]} 7. Bd3 {[%clk 00:15:12]} {[%emt 00:00:08]}
O-O {[%clk 00:15:30]} {[%emt 00:00:03]} 8. Qc2 {[%clk 00:15:13]} {[%emt
00:00:03]} Re8+ {[%clk 00:15:33]} {[%emt 00:00:01]} 9. Ne2 {[%clk 00:14:49]}
{[%emt 00:00:28]} h6 {[%clk 00:15:22]} {[%emt 00:00:17]} 10. Be3 {[%clk
00:14:41]} {[%emt 00:00:12]} Be6 {[%clk 00:15:09]} {[%emt 00:00:18]} 11. O-O-O
{[%clk 00:13:53]} {[%emt 00:00:52]} Bxa2 {[%clk 00:13:29]} {[%emt 00:01:47]} 12.
b3 {[%clk 00:12:55]} {[%emt 00:01:04]} Qa5 {[%clk 00:13:32]} {[%emt 00:00:02]}
13. Kd2 {[%clk 00:12:53]} {[%emt 00:00:07]} Qa3 {[%clk 00:13:22]} {[%emt
00:00:14]} 14. Ra1 {[%clk 00:10:46]} {[%emt 00:02:12]} Qxb3 {[%clk 00:09:37]}
{[%emt 00:03:50]} 15. Qxa2 {[%clk 00:10:29]} {[%emt 00:00:22]} Qb6 {[%clk
00:09:34]} {[%emt 00:00:08]} 16. Qa5 {[%clk 00:09:54]} {[%emt 00:00:41]} Nd7
{[%clk 00:08:30]} {[%emt 00:01:09]} 17. Rhb1 {[%clk 00:09:56]} {[%emt
00:00:02]} Qxa5 {[%clk 00:08:22]} {[%emt 00:00:13]} 18. Rxa5 {[%clk 00:09:59]}
{[%emt 00:00:02]} b6 {[%clk 00:08:02]} {[%emt 00:00:25]} 19. Ra6 {[%clk
00:10:02]} {[%emt 00:00:02]} c5 {[%clk 00:08:02]} {[%emt 00:00:05]} 20. Rba1
{[%clk 00:09:58]} {[%emt 00:00:09]} cxd4 {[%clk 00:07:56]} {[%emt 00:00:11]} 21.
Bxd4 {[%clk 00:09:46]} {[%emt 00:00:17]} Nc5 {[%clk 00:07:37]} {[%emt
00:00:25]} 22. Bxc5 {[%clk 00:09:49]} {[%emt 00:00:01]} Bxc5 {[%clk 00:07:41]}
{[%emt 00:00:01]} 23. Rxa7 {[%clk 00:09:34]} {[%emt 00:00:20]} Rxa7 {[%clk
00:07:44]} {[%emt 00:00:01]} 24. Rxa7 {[%clk 00:09:37]} {[%emt 00:00:02]} Bxf2
{[%clk 00:07:47]} {[%emt 00:00:02]} 25. Bc4 {[%clk 00:09:31]} {[%emt 00:00:11]}
Rd8+ {[%clk 00:07:22]} {[%emt 00:00:31]} 26. Kc2 {[%clk 00:09:33]} {[%emt
00:00:02]} b5 {[%clk 00:07:20]} {[%emt 00:00:08]} 27. Bxf7+ {[%clk 00:09:30]}
{[%emt 00:00:07]} Kh7 {[%clk 00:06:58]} {[%emt 00:00:28]} 28. Ra1 {[%clk
00:09:13]} {[%emt 00:00:22]} Rb8 {[%clk 00:06:29]} {[%emt 00:00:34]} 29. Rb1
{[%clk 00:09:09]} {[%emt 00:00:08]} Bc5 {[%clk 00:06:32]} {[%emt 00:00:02]} 30.
Nf4 {[%clk 00:08:51]} {[%emt 00:00:23]} g5 {[%clk 00:05:01]} {[%emt 00:01:36]}
31. Nd3 {[%clk 00:08:52]} {[%emt 00:00:05]} Bd6 {[%clk 00:05:05]} 32. h3 {[%clk
00:08:48]} Kg7 {[%clk 00:05:08]} {[%emt 00:00:11]} 33. Bd5 {[%clk 00:08:47]} f5
{[%clk 00:04:44]} {[%emt 00:00:34]} 34. Bc6 {[%clk 00:08:43]} Kf6 {[%clk
00:04:05]} {[%emt 00:00:54]} 35. Bxb5 {[%clk 00:08:39]} Ra8 {[%clk 00:03:52]}
{[%emt 00:00:27]} 36. Bc4 {[%clk 00:08:29]} g4 {[%clk 00:03:30]} {[%emt
00:00:42]} 37. Rb6 {[%clk 00:08:11]} Rd8 {[%clk 00:03:34]} {[%emt 00:00:25]} 38.
hxg4 {[%clk 00:08:10]} {[%emt 00:00:05]} fxg4 {[%clk 00:03:37]} {[%emt
00:00:01]} 39. Nf2 {[%clk 00:07:59]} {[%emt 00:00:16]} Kf5 {[%clk 00:03:33]}
{[%emt 00:00:10]} 40. Nd3 {[%clk 00:06:34]} {[%emt 00:01:30]} h5 {[%clk
00:03:23]} {[%emt 00:00:15]} 41. Rb5+ {[%clk 00:06:35]} {[%emt 00:00:04]} Kg6
{[%emt 00:00:08]} 42. Nf2 {[%clk 00:06:06]} {[%emt 00:00:34]} Bf4 {[%clk
00:03:05]} {[%emt 00:00:20]} 43. Bd3+ {[%clk 00:06:01]} {[%emt 00:00:10]} Kh6
{[%clk 00:02:57]} {[%emt 00:00:13]} 44. Ne4 {[%clk 00:05:30]} {[%emt 00:00:36]}
Be3 {[%clk 00:02:58]} {[%emt 00:00:04]} 45. Nf6 {[%emt 00:00:29]} Bg5 {[%clk
00:02:42]} {[%emt 00:00:16]} 46. Nh7 {[%clk 00:04:41]} {[%emt 00:00:35]} Be3
{[%clk 00:02:28]} {[%emt 00:00:19]} 47. Re5 {[%clk 00:04:29]} {[%emt 00:00:16]}
Bf4 {[%clk 00:02:16]} {[%emt 00:00:17]} 48. Re6+ {[%clk 00:04:32]} {[%emt
00:00:03]} Kg7 {[%clk 00:02:20]} {[%emt 00:00:01]} 49. Nf6 {[%clk 00:04:21]}
{[%emt 00:00:16]} Rh8 {[%clk 00:01:52]} {[%emt 00:00:33]} 50. Nd5 {[%clk
00:04:24]} {[%emt 00:00:01]} Bg3 {[%clk 00:01:44]} {[%emt 00:00:14]} 51. Ne3
{[%clk 00:04:04]} {[%emt 00:00:24]} Bf2 {[%clk 00:01:19]} {[%emt 00:00:31]} 52.
Nf5+ {[%clk 00:04:08]} {[%emt 00:00:01]} Kf8 {[%clk 00:01:11]} {[%emt
00:00:13]} 53. Bc4 {[%clk 00:03:59]} {[%emt 00:00:14]} Rh7 {[%clk 00:01:14]}
{[%emt 00:00:02]} 54. Rc6 {[%clk 00:03:41]} {[%emt 00:00:22]} 1-0

[Event "The Kvibergspelen 2024"]
[Site "Kviberg Park Hotel & Conference, Krutvagen 2, Gothenburg, Sweden"]
[Date "2024.09.06"]
[Round "1.18"]
[White "Tronsson, Martin"]
[Black "Schriever-Abeln, Marius"]
[Result "0-1"]
[TimeControl "15 minutes + 5 seconds per move from move one (Round 1 - 4) / 90 minutes + 30 seconds per move from move one (Round 5 - 8)"]
[WhiteFideId "1775057"]
[BlackFideId "1752650"]
[WhiteElo "1787"]
[BlackElo "2069"]

1. e4 {[%clk 00:15:08]} {[%emt 00:00:02]} c5 {[%clk 00:15:08]} {[%emt
00:00:03]} 2. Nf3 {[%clk 00:15:11]} e6 {[%clk 00:15:10]} {[%emt 00:00:04]} 3.
d4 {[%clk 00:15:15]} {[%emt 00:00:01]} cxd4 {[%clk 00:15:13]} {[%emt 00:00:02]}
4. Nxd4 {[%clk 00:15:18]} {[%emt 00:00:01]} a6 {[%clk 00:15:17]} {[%emt
00:00:03]} 5. Bd3 {[%clk 00:15:20]} {[%emt 00:00:01]} Bc5 {[%clk 00:15:17]}
{[%emt 00:00:06]} 6. Nb3 {[%clk 00:15:23]} {[%emt 00:00:01]} Ba7 {[%clk
00:15:20]} {[%emt 00:00:03]} 7. Nc3 {[%clk 00:15:26]} {[%emt 00:00:01]} Nc6
{[%clk 00:15:05]} {[%emt 00:00:21]} 8. O-O {[%clk 00:15:24]} {[%emt 00:00:06]}
Nf6 {[%clk 00:14:46]} {[%emt 00:00:25]} 9. Qe2 {[%clk 00:14:50]} {[%emt
00:00:38]} d6 {[%clk 00:14:43]} {[%emt 00:00:08]} 10. Be3 {[%clk 00:14:04]}
{[%emt 00:00:51]} b5 {[%clk 00:14:03]} {[%emt 00:00:46]} 11. a3 {[%clk
00:13:06]} {[%emt 00:01:02]} Bxe3 {[%clk 00:13:38]} {[%emt 00:00:31]} 12. Qxe3
{[%clk 00:12:37]} {[%emt 00:00:33]} Bb7 {[%clk 00:13:33]} {[%emt 00:00:10]} 13.
f4 {[%clk 00:11:43]} {[%emt 00:00:59]} Qc7 {[%clk 00:12:49]} {[%emt 00:00:50]}
14. Rad1 {[%clk 00:10:18]} {[%emt 00:01:30]} Ng4 {[%clk 00:08:25]} {[%emt
00:04:29]} 15. Qg3 {[%clk 00:09:31]} {[%emt 00:00:52]} Qb6+ {[%clk 00:06:48]}
{[%emt 00:01:42]} 16. Kh1 {[%clk 00:09:21]} {[%emt 00:00:14]} Ne3 {[%clk
00:04:54]} {[%emt 00:01:58]} 17. Qxg7 {[%clk 00:08:28]} {[%emt 00:00:59]} Nxd1
{[%clk 00:04:19]} {[%emt 00:00:41]} 18. Rxd1 {[%clk 00:04:55]} {[%emt
00:03:38]} Rf8 {[%clk 00:03:12]} {[%emt 00:01:11]} 19. f5 {[%clk 00:03:46]}
{[%emt 00:01:14]} O-O-O {[%clk 00:02:13]} {[%emt 00:01:05]} 20. fxe6 {[%clk
00:02:54]} {[%emt 00:00:57]} fxe6 {[%clk 00:02:04]} {[%emt 00:00:13]} 21. Qg4
{[%clk 00:02:26]} {[%emt 00:00:33]} Qf2 {[%clk 00:00:42]} {[%emt 00:01:28]} 22.
Qxe6+ {[%clk 00:01:16]} {[%emt 00:01:15]} Kb8 {[%clk 00:00:44]} {[%emt
00:00:03]} 23. Nd5 {[%clk 00:00:54]} {[%emt 00:00:27]} Rg8 {[%clk 00:00:35]}
{[%emt 00:00:14]} 24. Rg1 {[%clk 00:00:47]} {[%emt 00:00:13]} Ne5 {[%clk
00:00:27]} {[%emt 00:00:11]} 25. Qe7 {[%clk 00:00:30]} {[%emt 00:00:21]} Nf3
{[%clk 00:00:18]} {[%emt 00:00:16]} 26. Qc7+ {[%clk 00:00:09]} {[%emt
00:00:27]} Ka7 {[%clk 00:00:15]} {[%emt 00:00:08]} 27. Qb6+ {[%clk 00:00:11]}
{[%emt 00:00:02]} Qxb6 {[%clk 00:00:18]} {[%emt 00:00:02]} 28. Nxb6 {[%clk
00:00:15]} {[%emt 00:00:01]} Nxg1 {[%clk 00:00:19]} {[%emt 00:00:04]} 29. Nd5
{[%clk 00:00:17]} {[%emt 00:00:03]} Bxd5 {[%clk 00:00:13]} {[%emt 00:00:11]} 30.
exd5 {[%clk 00:00:21]} Nf3 {[%clk 00:00:14]} {[%emt 00:00:04]} 31. gxf3 {[%clk
00:00:22]} {[%emt 00:00:04]} Rde8 {[%clk 00:00:18]} {[%emt 00:00:03]} 32. Be4
{[%clk 00:00:24]} {[%emt 00:00:03]} Re7 {[%clk 00:00:16]} {[%emt 00:00:07]} 33.
Nd4 {[%clk 00:00:24]} {[%emt 00:00:04]} Reg7 {[%clk 00:00:19]} {[%emt
00:00:02]} 34. Ne2 {[%clk 00:00:23]} {[%emt 00:00:06]} Rg2 {[%clk 00:00:19]}
{[%emt 00:00:04]} 35. Bd3 {[%clk 00:00:19]} {[%emt 00:00:10]} Rf2 {[%clk
00:00:18]} {[%emt 00:00:06]} 0-1

[Event "The Kvibergspelen 2024"]
[Site "Kviberg Park Hotel & Conference, Krutvagen 2, Gothenburg, Sweden"]
[Date "2024.09.06"]
[Round "1.19"]
[White "Wahlstrom, Lennart"]
[Black "Svensson, Bengt"]
[Result "1-0"]
[TimeControl "15 minutes + 5 seconds per move from move one (Round 1 - 4) / 90 minutes + 30 seconds per move from move one (Round 5 - 8)"]
[WhiteFideId "1706829"]
[BlackFideId "1722891"]
[WhiteElo "2058"]
[BlackElo "1783"]

1. e4 {[%clk 00:15:07]} {[%emt 00:00:02]} e5 {[%clk 00:15:08]} {[%emt
00:00:02]} 2. Nf3 {[%clk 00:15:10]} {[%emt 00:00:02]} Nc6 {[%clk 00:15:11]}
{[%emt 00:00:02]} 3. d4 {[%clk 00:15:13]} {[%emt 00:00:02]} exd4 {[%clk
00:15:13]} {[%emt 00:00:03]} 4. Nxd4 {[%clk 00:15:16]} {[%emt 00:00:02]} Nf6
{[%clk 00:15:15]} {[%emt 00:00:03]} 5. Nxc6 {[%clk 00:15:18]} {[%emt 00:00:04]}
bxc6 {[%emt 00:00:02]} 6. Bd3 {[%clk 00:15:18]} {[%emt 00:00:03]} d5 {[%clk
00:15:00]} {[%emt 00:00:24]} 7. exd5 {[%clk 00:15:21]} {[%emt 00:00:02]} cxd5
{[%clk 00:15:03]} {[%emt 00:00:03]} 8. O-O {[%clk 00:15:22]} {[%emt 00:00:03]}
Be7 {[%clk 00:14:28]} {[%emt 00:00:41]} 9. c4 {[%clk 00:15:20]} {[%emt
00:00:07]} c6 {[%clk 00:13:55]} {[%emt 00:00:37]} 10. Nc3 {[%clk 00:14:59]}
{[%emt 00:00:26]} O-O {[%clk 00:13:03]} {[%emt 00:00:57]} 11. cxd5 {[%clk
00:14:31]} {[%emt 00:00:33]} cxd5 {[%clk 00:12:39]} {[%emt 00:00:29]} 12. Bg5
{[%clk 00:14:07]} {[%emt 00:00:28]} Be6 {[%clk 00:10:40]} {[%emt 00:02:05]} 13.
Re1 {[%clk 00:13:24]} {[%emt 00:00:48]} Rb8 {[%clk 00:09:38]} {[%emt 00:01:07]}
14. Qc2 {[%clk 00:12:08]} {[%emt 00:01:21]} h6 {[%clk 00:09:34]} {[%emt
00:00:09]} 15. Bh4 {[%clk 00:12:11]} {[%emt 00:00:01]} Qb6 {[%clk 00:09:02]}
{[%emt 00:00:38]} 16. Rab1 {[%clk 00:10:57]} {[%emt 00:01:20]} Rfc8 {[%clk
00:08:35]} {[%emt 00:00:30]} 17. Qe2 {[%clk 00:10:53]} {[%emt 00:00:09]} Re8
{[%clk 00:06:24]} {[%emt 00:02:17]} 18. Bb5 {[%clk 00:10:19]} {[%emt 00:00:40]}
Red8 {[%clk 00:05:46]} {[%emt 00:00:42]} 19. Bg3 {[%clk 00:10:00]} {[%emt
00:00:23]} Bd6 {[%clk 00:05:23]} {[%emt 00:00:30]} 20. Bxd6 {[%clk 00:09:34]}
{[%emt 00:00:30]} Rxd6 {[%clk 00:05:19]} {[%emt 00:00:09]} 21. Bd3 {[%clk
00:09:00]} {[%emt 00:00:39]} Re8 {[%clk 00:05:08]} {[%emt 00:00:15]} 22. Qd2
{[%clk 00:08:25]} {[%emt 00:00:41]} Bd7 {[%clk 00:04:02]} {[%emt 00:01:11]} 23.
Rxe8+ Bxe8 {[%clk 00:04:06]} 24. Rd1 {[%clk 00:06:53]} {[%emt 00:01:15]} Bc6
{[%clk 00:03:59]} {[%emt 00:00:12]} 25. Re1 {[%clk 00:05:34]} {[%emt 00:01:24]}
Bb7 {[%clk 00:03:22]} {[%emt 00:00:43]} 26. Bf5 {[%clk 00:05:15]} {[%emt
00:00:24]} Qd8 {[%clk 00:03:03]} {[%emt 00:00:24]} 27. Nb5 {[%clk 00:04:38]}
{[%emt 00:00:41]} Ra6 {[%clk 00:02:16]} {[%emt 00:00:53]} 28. a3 {[%clk
00:04:37]} {[%emt 00:00:06]} Bc8 {[%clk 00:02:05]} {[%emt 00:00:16]} 29. Bxc8
{[%clk 00:04:22]} {[%emt 00:00:20]} Qxc8 {[%clk 00:02:09]} {[%emt 00:00:01]} 30.
Nd4 {[%clk 00:04:01]} {[%emt 00:00:26]} Ne4 {[%clk 00:02:02]} {[%emt 00:00:12]}
31. Qd3 {[%clk 00:04:04]} {[%emt 00:00:02]} Nc5 {[%clk 00:01:55]} {[%emt
00:00:13]} 32. Qb5 {[%clk 00:03:52]} {[%emt 00:00:17]} Ne6 {[%clk 00:01:17]}
{[%emt 00:00:42]} 33. Nf5 {[%clk 00:03:39]} {[%emt 00:00:18]} Nc7 {[%clk
00:00:28]} {[%emt 00:00:54]} 34. Qd3 {[%clk 00:03:00]} {[%emt 00:00:44]} Kh8
{[%clk 00:00:10]} {[%emt 00:00:23]} 35. Rc1 {[%clk 00:03:02]} {[%emt 00:00:03]}
Qd7 {[%clk 00:00:09]} {[%emt 00:00:06]} 36. Rxc7 {[%clk 00:02:48]} {[%emt
00:00:18]} Qxc7 {[%clk 00:00:08]} {[%emt 00:00:08]} 37. Qxa6 {[%clk 00:02:50]}
{[%emt 00:00:02]} Qc1+ {[%clk 00:00:11]} {[%emt 00:00:02]} 38. Qf1 {[%clk
00:02:53]} {[%emt 00:00:02]} Qf4 {[%clk 00:00:15]} {[%emt 00:00:01]} 39. Ng3
{[%clk 00:02:38]} {[%emt 00:00:20]} d4 {[%clk 00:00:13]} {[%emt 00:00:07]} 40.
Ne2 {[%clk 00:02:36]} {[%emt 00:00:07]} Qd2 {[%clk 00:00:16]} {[%emt 00:00:03]}
41. b4 {[%clk 00:02:34]} {[%emt 00:00:06]} d3 {[%clk 00:00:18]} {[%emt
00:00:02]} 42. Nc1 {[%clk 00:02:33]} {[%emt 00:00:06]} Qb2 {[%clk 00:00:13]}
{[%emt 00:00:10]} 43. Nxd3 {[%clk 00:02:34]} {[%emt 00:00:04]} Qxa3 {[%clk
00:00:17]} {[%emt 00:00:02]} 44. g3 {[%clk 00:02:35]} {[%emt 00:00:03]} Qc3
{[%clk 00:00:13]} {[%emt 00:00:09]} 45. Qd1 {[%clk 00:02:32]} {[%emt 00:00:08]}
Qd4 {[%clk 00:00:15]} {[%emt 00:00:05]} 46. Qc2 {[%clk 00:02:30]} {[%emt
00:00:05]} Qe4 {[%clk 00:00:10]} {[%emt 00:00:10]} 47. Qc3 {[%clk 00:02:29]}
{[%emt 00:00:06]} Qb7 {[%clk 00:00:12]} {[%emt 00:00:03]} 48. Nc5 {[%emt
00:00:06]} Qb5 {[%clk 00:00:16]} 49. Qd4 {[%clk 00:02:32]} {[%emt 00:00:02]} a5
{[%clk 00:00:15]} {[%emt 00:00:07]} 50. Qd8+ {[%clk 00:02:32]} {[%emt
00:00:04]} Kh7 {[%emt 00:00:07]} 51. Qd3+ 1-0